Cogmind - Beta 12 @@@ ROGUE MODE // 2023.03.13 @ 14:36:43 Player: Terminus Result: Destroyed by as-94564 with Assembled Blade Performance ------------- Evolutions (0) 0 Regions Visited (0) 0 Robots Destroyed (0) 0 Value Destroyed (0) 0 Prototype IDs (0) 0 Alien Tech Used (0) 0 Bonus (0) 0 TOTAL SCORE: 0 Bonus ------- None Cogmind --------- Core Integrity 0/250 Matter 300/300 Energy 125/125 System Corruption 12% Temperature Cool (0) Movement Hovering (80) Location -11/Junkyard Parts ------- > --- POWER (1) -------- Light Ion Engine > --- PROPULSION (2) --- Combat Airjet > --- UTILITY (2) ------ Small Storage Unit Improved Light Armor Plating > --- WEAPON (2) ------- Mining Laser > --- INVENTORY (8) ---- Light Ion Engine Peak State ------------ > --- POWER ------------ Light Ion Engine > --- PROPULSION ------- Combat Airjet > --- UTILITY ---------- Small Storage Unit Improved Light Armor Plating > --- WEAPON ----------- Mining Laser > --- INVENTORY -------- Light Ion Engine [Rating: 11] Favorites ----------- Power Ion Engine Engine Ion Engine Propulsion Light Treads Treads Light Treads Wheel Wheel Hover Unit Combat Airjet Utility Small Storage Unit Storage Small Storage Unit Protection Improved Light Armor Plating Weapon Assault Rifle Energy Gun EM Pulse Gun Ballistic Gun Assault Rifle Special Weapon Mining Laser Build | -11 ------- Run | Jun Slots Evolved . | . Power . | . Propulsion . | . Utility . | . Weapon . | . Parts Attached 15 | 15 Power 3 | 3 Engine 3 | 3 Core . | . Reactor . | . Propulsion 4 | 4 Treads 2 | 2 Leg . | . Wheel 1 | 1 Hover 1 | 1 Flight . | . Utility 3 | 3 Device . | . Storage 1 | 1 Processor . | . Hackware . | . Protection 2 | 2 Artifact . | . Weapon 5 | 5 Energy Gun 1 | 1 Energy Cannon . | . Ballistic Gun 3 | 3 Ballistic Cannon . | . Launcher . | . Special Weapon 1 | 1 Impact Weapon . | . Slashing Weapon . | . Piercing Weapon . | . Special Melee Weapon . | . Unidentified Prototypes . | . Parts Lost 8 | 8 Power 2 | 2 Propulsion 3 | 3 Utility . | . Weapon 3 | 3 Highest Loss Streak 3 | 3 To Critical Strikes . | . Average Slot Usage (%) . | . Naked Turns . | . Heaviest Build 14 | 14 Greatest Support 40 | 40 Greatest Overweight (x) 4 | 4 Average Overweight (x) . | . Largest Inventory Capacity 8 | 8 Average Capacity 7 | 7 Most Carried 2 | 2 Average Carried 1 | 1 Final Capacity 8 | 8 Final Carried 1 | 1 Class Distribution -------------------- None Dominant Class ---------------- None Resources | -11 ----------- Run | Jun Matter Collected 388 | 388 Remotely . | . Salvage Created 161 | 161 Parts . | . Haulers Intercepted . | . Recyclers Shooed . | . Parts Field Recycled . | . Retrieved Matter . | . Parts Self-Destructed . | . Prevented . | . Kills | -11 ------- Run | Jun Combat Hostiles Destroyed 11 | 11 Guns 10 | 10 Cannons 1 | 1 Classes Destroyed 1 | 1 Assembled 11 | 11 Best Kill Streak 10 | 10 Combat Bots Only 10 | 10 Max Kills in Single Turn 1 | 1 Gunslinging . | . Exploded . | . Melee . | . Uniques/NPCs Destroyed . | . Combat | -11 -------- Run | Jun Damage Taken 1178 | 1178 Core 250 | 250 Absorbed by Shields . | . Core Remaining (%) . | . Volleys Fired 34 | 34 Largest 2 | 2 Hottest 100 | 100 Shots Fired 60 | 60 Gun 57 | 57 Cannon . | . Launcher . | . Special 3 | 3 Kinetic 39 | 39 Thermal 3 | 3 Explosive . | . Electromagnetic 18 | 18 Robot Hit Streak 5 | 5 Robot Miss Streak 4 | 4 Penetration Max . | . Secondary Targets 1 | 1 Max Gunslinging Chain 1 | 1 Shots Hit Robots 33 | 33 Core Hits 25 | 25 Critical Kills . | . Critical Parts Destroyed 1 | 1 Critical Strikes 1 | 1 Destroy 1 | 1 Melee Attacks . | . Impact . | . Slashing . | . Piercing . | . Sneak Attacks . | . Combat Hostiles . | . Follow-up Attacks . | . Damage Inflicted 428 | 428 Guns 388 | 388 Cannons . | . Explosions . | . Melee . | . Ramming 16 | 16 Kinetic 289 | 289 Thermal 24 | 24 Explosive . | . Electromagnetic 99 | 99 Impact . | . Slashing . | . Piercing . | . Highest Corruption 12 | 12 Average Corruption 10 | 10 Corruption Purged . | . Corruption Blocked . | . Effects 9 | 9 Message Errors 3 | 3 Matter Fused 1 | 1 Heat Flow Errors 3 | 3 Energy Discharges 1 | 1 Parts Rejected 1 | 1 Overload Shots . | . Overflow Damage . | . Projectiles . | . Explosions . | . Melee . | . Knockbacks . | . Impact . | . Kinetic . | . Secondary . | . Self-Inflicted Damage 7 | 7 Shots . | . Rammed 14 | 14 Targets Rammed 14 | 14 Kicked . | . Crushed . | . Highest Temperature 279 | 279 Average Temperature 127 | 127 Received Heat Transfer 40 | 40 Effects 1 | 1 Interference 1 | 1 Siege Activations . | . Robots Corrupted . | . Combat Hostiles . | . Parts Fried . | . Impact Corruptions . | . Robots Melted . | . Combat Hostiles . | . Parts Melted . | . Heat Transferred 50 | 50 Parts Sabotaged . | . Parts Stolen . | . Parts Stripped . | . Power Chain Reactions . | . Missiles Intercepted . | . Alert | -11 ------- Run | Jun Peak Influence 30 | 30 Initial . | . Average . | . Maximum Alert Level . | . Low Security (%) 100 | 100 Level 1 . | . Level 2 . | . Level 3 . | . Level 4 . | . Level 5 . | . High Security . | . Max Security . | . Squads Dispatched . | . Investigation . | . Extermination . | . Reinforcement . | . Assault . | . Garrison . | . Intercept . | . Searches Triggered . | . Construction Impeded . | . Haulers Reinforced . | . Active Scanning Responses . | . Cargo Convoy Interrupts . | . Stealth | -11 --------- Run | Jun Distress Signals . | . Communications Jammed . | . Distress Signals . | . Times Spotted 14 | 14 Peak Tracking Total 6 | 6 Tactical Retreats 1 | 1 Traps | -11 ------- Run | Jun Traps Triggered . | . Indirectly . | . Trap Hack Attempts . | . Triggered . | . Disarmed . | . Reprogrammed . | . Reused . | . Traps Extracted . | . Installed . | . Triggered . | . Machines | -11 ---------- Run | Jun Machines Disabled . | . Max in Single Turn . | . Machines Repaired . | . Machines Sabotaged . | . Overloaded Fab Kills . | . Hacking | -11 --------- Run | Jun Machines Accessed . | . Terminals . | . Fabricators . | . Repair Stations . | . Recycling Units . | . Scanalyzers . | . Garrison Access . | . Total Hacks . | . Successful . | . Failed . | . Catastrophic . | . Database Lockouts . | . Manual . | . Terminals . | . Fabricators . | . Repair Stations . | . Recycling Units . | . Scanalyzers . | . Garrison Access . | . Terminal Hacks . | . Fabricator Hacks . | . Repair Station Hacks . | . Recycling Unit Hacks . | . Scanalyzer . | . Garrison Access Hacks . | . Unauthorized Hacks . | . Terminals . | . Fabricators . | . Repair Stations . | . Recycling Units . | . Scanalyzers . | . Garrison Access . | . Data Cores Recovered . | . Used . | . Hacking Detections . | . Full Trace Events . | . Feedback Events . | . Feedback Blocked . | . Robot Schematics Acquired . | . Robots Built . | . Authchips . | . Time . | . Total Robot Build Rating . | . Part Schematics Acquired . | . Parts Built . | . Authchips . | . Time . | . Total Part Build Rating . | . Parts Repaired . | . Time . | . Parts Recycled . | . Recycled Matter . | . Retrieved Matter . | . Retrieved Components . | . Parts Scanalyzed . | . Part Schematics Acquired . | . Parts Damaged . | . Bothacking | -11 ------------ Run | Jun Used RIF Installer . | . Robots Hacked . | . Non-combat . | . Combat . | . Robot Hacks Applied . | . Relay Couplers Released . | . Fabnet Peak Effective % . | . Robots Rewired . | . Allies Hacked . | . Hacks Repelled . | . Allies | -11 -------- Run | Jun Total Allies . | . Largest Group . | . Highest-Rated Group . | . Highest-Rated Ally . | . Total Orders . | . Ally Attacks . | . Total Damage . | . Kills . | . Allies Corrupted . | . Allies Melted . | . Intel | -11 ------- Run | Jun Robot Analysis Total . | . Derelict Logs Recovered . | . Drone Launches . | . Drone Recoveries . | . Exploration | -11 ------------- Run | Jun Turns Passed 2804 | 2804 Spaces Moved 280 | 280 Core 51 | 51 Treads 124 | 124 Legs . | . Wheels 1 | 1 Hover 104 | 104 Flight . | . Fastest Speed 50 | 50 Average Speed 119 | 119 Slowest Speed 250 | 250 Overloaded Moves . | . Propulsion Burnouts . | . Robots Hopped . | . Cave-ins Triggered . | . Exploration Rate (%) 32 | 32 Regions Visited . Branch Regions . Pre-discovered Areas . | . Known Exits Taken . | . Unknown Exits Taken . | . Scrap Searched . | . Spaces Dug . | . Terrain Destroyed 2 | 2 Melee . | . Projectile 2 | 2 AOE . | . Terrain Rammed . | . Walls Destroyed . | . Machines Disabled . | . Actions | -11 --------- Run | Jun Total 2669 | 2669 Wait 2324 | 2324 Move 280 | 280 Hop . | . Pick Up 2 | 2 Fast Attach 14 | 14 Attach 1 | 1 Detach . | . Swap . | . Drop . | . Fire 34 | 34 Melee . | . Ram 14 | 14 Kick . | . Crush . | . Escape Stasis . | . Rewire . | . Trap . | . Miscellaneous . | . Route ------- -11/Junkyard (discovered 1 exit: [*Mat]) History --------- Turn | Location | Event 4 | -11/Junkyard | Discovered new exit (range 15) 2287 | -11/Junkyard | Assembled infested the area 2580 | -11/Junkyard | Lost 3 parts (2n1w) 2616 | -11/Junkyard | Destroyed 10 combat bots 2632 | -11/Junkyard | Core integrity fell below 50% 2641 | -11/Junkyard | Lost 3 parts (1p2w) 2659 | -11/Junkyard | Core integrity fell below 20% 2663 | -11/Junkyard | System corruption reached 10% 2805 | -11/Junkyard | Destroyed by as-94564 with Assembled Blade Last Messages --------------- 02662_ Broken Wheel destroyed. 02662_ System corrupted by crushing effect (+3). 02663_ as-29361 destroyed. 02673_ Acquired 31 matter. 02680_ Acquired Cmb. Airjet. 02682_ Acquired Imp. Light Armor Plating. 02683_ Acquired 20 matter. 02698_ LMI>HUWE1